fUSD/lending_fUSD_20241108
["ID","MTS","AMOUNT","RATE_DAILY","PERIOD"]
[341671071,1731079841811,-353.44,0.00028141,2]
[341671074,1731079841821,-353.44,0.00028593,2]
[341671076,1731079841831,-1296.21074069,0.00032,30]
[341671079,1731079841858,-1685.74343468,0.00032,30]
[341671082,1731079841869,-876.59499999,0.00032,30]
[341671240,1731079843543,-1041.4084361,0.00032,30]
[341671242,1731079843555,-1001.57471807,0.00032,30]
[341671246,1731079843690,-106505.13057014,0.00032,30]
[341671247,1731079843702,-5992.80786109,0.00032,30]
[341671256,1731079843777,-68863.4635873,0.00032,30]
[341671258,1731079843792,-7104.12484771,0.00032,30]
[341671262,1731079843820,-854.32394473,0.00032,30]
[341671264,1731079843830,-1161.0,0.00032,20]
[341671266,1731079843840,-151.0,0.00032,7]
[341671268,1731079843850,-151.0,0.00032,7]
[341671270,1731079843860,-151.0,0.00032,7]
[341671272,1731079843870,-151.0,0.00032,7]
[341671274,1731079843879,-179.617765,0.00032,7]
[341671276,1731079843890,-151.0,0.00032,7]
[341671278,1731079843900,-151.0,0.00032,7]
[341671280,1731079843910,-151.0,0.00032,7]
[341671282,1731079843921,-151.0,0.00032,7]
[341671284,1731079843930,-151.0,0.00032,7]
[341671286,1731079843940,-161.748461,0.00032,7]
[341671288,1731079843950,-151.0,0.00032,7]
[341671290,1731079843960,-151.105192,0.00032,7]
[341671292,1731079843970,-151.0,0.00032,7]
[341671294,1731079843979,-175.855525,0.00032,7]
[341671296,1731079843990,-151.0,0.00032,7]
[341671298,1731079843999,-175.855525,0.00032,7]
[341671300,1731079844009,-151.0,0.00032,7]
[341671302,1731079844018,-151.0,0.00032,7]
[341671304,1731079844028,-151.0,0.00032,7]
[341671306,1731079844045,-265.959678,0.00032,7]
[341671308,1731079844055,-151.0,0.00032,7]
[341671310,1731079844066,-151.0,0.00032,7]
[341671312,1731079844075,-151.0,0.00032,7]
[341671314,1731079844087,-151.0,0.00032,7]
[341671317,1731079844097,-154.484683,0.00032,7]
[341671319,1731079844107,-8.50896961,0.00032,7]
[341671321,1731079844119,-144.69437939,0.00032,7]
[341671323,1731079844129,-151.0,0.00032,7]
[341671325,1731079844139,-151.0,0.00032,7]
[341671327,1731079844150,-151.0,0.00032,7]
[341671329,1731079844160,-151.527998,0.00032,7]
[341671331,1731079844170,-151.0,0.00032,7]
[341671333,1731079844179,-154.053913,0.00032,7]
[341671335,1731079844189,-412.690343,0.00032,7]
[341671337,1731079844198,-412.690343,0.00032,7]
[341671339,1731079844208,-151.0,0.00032,7]
[341671341,1731079844217,-151.0,0.00032,7]
[341671343,1731079844228,-412.690343,0.00032,7]
[341671345,1731079844240,-412.690343,0.00032,7]
[341671347,1731079844249,-151.0,0.00032,7]
[341671349,1731079844258,-151.0,0.00032,7]
[341671351,1731079844269,-185.684169,0.00032,7]
[341671353,1731079844279,-151.0,0.00032,7]
[341671355,1731079844297,-151.0,0.00032,7]
[341671357,1731079844308,-151.0,0.00032,7]
[341671359,1731079844317,-151.0,0.00032,7]
[341671361,1731079844327,-151.0,0.00032,7]
[341671363,1731079844336,-151.0,0.00032,7]
[341671366,1731079844347,-151.0,0.00032,7]
[341671368,1731079844357,-209.872414,0.00032,7]
[341671370,1731079844368,-176.65233,0.00032,2]
[341671371,1731079844377,-176.65233,0.00032,2]
[341671373,1731079844386,-176.65233,0.00032,2]
[341671375,1731079844396,-151.0,0.00032,7]
[341671377,1731079844406,-176.65233,0.00032,2]
[341671379,1731079844417,-151.0,0.00032,7]
[341671381,1731079844428,-151.0,0.00032,7]
[341671383,1731079844437,-346.496136,0.00032,7]
[341671385,1731079844447,-346.496136,0.00032,7]
[341671387,1731079844457,-151.0,0.00032,7]
[341671389,1731079844466,-151.0,0.00032,7]
[341671391,1731079844476,-151.0,0.00032,7]
[341671393,1731079844486,-151.0,0.00032,7]
[341671395,1731079844495,-1711.355935,0.00032,7]
[341671397,1731079844505,-2306.22203,0.00032,2]
[341671399,1731079844514,-1711.355935,0.00032,7]
[341671401,1731079844524,-151.0,0.00032,7]
[341671403,1731079844541,-232.16875749,0.00032054,2]
[341671405,1731079844551,-2000.0,0.00032055,2]
[341671407,1731079844560,-3000.0,0.00032055,7]
[341671409,1731079844570,-4213.09858332,0.00032082,15]
[341671411,1731079844580,-186.24,0.00032217,2]
[341671413,1731079844591,-1868.96,0.00032273,120]
[341671415,1731079844601,-1000.0,0.000323,2]
[341671417,1731079844611,-229.0,0.000323,2]
[341671419,1731079844620,-363.0,0.000323,2]
[341671421,1731079844631,-2000.0,0.00032329,2]
[341671423,1731079844641,-3000.0,0.00032329,7]
[341671425,1731079844652,-500.0,0.000324,120]
[341671427,1731079844661,-157.67,0.00032414,120]
[341671429,1731079844671,-1001.56,0.0003243,2]
[341671432,1731079844682,-1000.0,0.00032473,2]
[341671433,1731079844691,-1161.0,0.000325,21]
[341671435,1731079844701,-152.0,0.00032514,4]
[341671437,1731079844711,-1868.96,0.00032547,120]
[341671440,1731079844720,-1206.7589894,0.00032603,2]
[341671507,1731079845403,-793.2410106,0.00032603,2]
[341671509,1731079845414,-3000.0,0.00032603,7]
[341671511,1731079845423,-500.0,0.00032639,3]
[341671513,1731079845433,-154.76,0.00032741,2]
[341671515,1731079845443,-151.0,0.0003278,2]
[341671517,1731079845453,-1868.96,0.00032821,120]
[341671519,1731079845462,-326.75,0.00032877,2]
[341671521,1731079845471,-203.05,0.00032877,2]
[341671523,1731079845481,-2000.0,0.00032877,2]
[341671525,1731079845491,-2107.06574942,0.00032877,7]
[341671663,1731079847006,-892.93425058,0.00032877,7]
[341671664,1731079847015,-1547.04407192,0.000329,14]
[341671666,1731079847029,-265.80980033,0.000329,14]
[341671672,1731079847081,-1020.29612775,0.000329,14]
[341671674,1731079847092,-300.0,0.00033,5]
[341671676,1731079847102,-346.00634195,0.00033,2]
[341671679,1731079847113,-465.23996,0.00033,2]
[341671681,1731079847124,-13663.89004107,0.00033,2]
[341671683,1731079847135,-1161.0,0.00033,22]
[341671685,1731079847144,-750.0,0.00033,2]
[341671687,1731079847154,-1800.0,0.00033,34]
[341671689,1731079847163,-355.565527,0.00033,14]
[341671691,1731079847173,-709.07,0.00033003,120]
[341671693,1731079847183,-500.0,0.00033059,120]
[341671695,1731079847199,-2000.0,0.00033069,120]
[341671697,1731079847209,-1868.96,0.00033095,120]
[341671699,1731079847219,-151.0,0.00033151,120]
[341671701,1731079847232,-180.0,0.00033151,2]
[341671702,1731079847242,-167.38,0.00033175,2]
[341671704,1731079847251,-2000.0,0.0003319,2]
[341671706,1731079847261,-4213.09858332,0.00033365,15]
[341671708,1731079847271,-1868.96,0.00033369,120]
[341671710,1731079847280,-2674.06,0.00033369,120]
[341671712,1731079847297,-1153.56346526,0.000335,2]
[341671714,1731079847309,-1161.0,0.000335,22]
[341671716,1731079847320,-919.42,0.000335,31]
[341671718,1731079847329,-919.42,0.000335,31]
[341671720,1731079847339,-919.42,0.000335,31]
[341671722,1731079847348,-919.42,0.000335,31]
[341671724,1731079847358,-919.42,0.000335,31]
[341671726,1731079847368,-919.42,0.000335,31]
[341671728,1731079847377,-919.42,0.000335,31]
[341671730,1731079847386,-919.42,0.000335,31]
[341671732,1731079847397,-919.42,0.000335,31]
[341671734,1731079847407,-919.42,0.000335,31]
[341671736,1731079847416,-919.42,0.000335,31]
[341671738,1731079847425,-919.42,0.000335,31]
[341671740,1731079847435,-1138.37,0.00033626,2]
[341671742,1731079847444,-1868.96,0.00033643,120]
[341671744,1731079847453,-186.24,0.00033682,2]
[341671746,1731079847463,-151.0,0.00033699,7]
[341671748,1731079847472,-2161.81289961,0.000337,2]
[341671750,1731079847482,-3000.0,0.000337,2]
[341671751,1731079847491,-300.0,0.000337,2]
[341671753,1731079847501,-184.2733369,0.00033753,2]
[341671755,1731079847510,-224.02895719,0.0003379,2]
[341671757,1731079847520,-151298.27058219,0.00033799,7]
[341671761,1731079847548,-8817.90000001,0.00033799,7]
[341672860,1731080200871,160.38,0.00015342,2]
[341672866,1731080871203,340.36673282,0.00017174,2]
[341672867,1731080896105,153.98,0.00015342,2]
[341672869,1731080922013,504.0,0.00019452,2]
[341672896,1731081032120,-450.0,0.00021,2]
[341672897,1731081032130,-500.0,0.00023,2]
[341672898,1731081032139,-749.0,0.000242,3]
[341672899,1731081032149,-550.0,0.00025,2]
[341672900,1731081032159,-350.4119419,0.00027,2]
[341672901,1731081032168,-1566.118744,0.00027,2]
[341672902,1731081032178,-600.0,0.00027,2]
[341672903,1731081032187,-1903.025,0.00027,2]
[341672904,1731081032197,-400.0,0.000275,2]
[341672905,1731081032206,-150.0,0.00027863,2]
[341672906,1731081032215,-766.44,0.000279,2]
[341672907,1731081032225,-1031.36,0.00027959,2]
[341672908,1731081032234,-160.38,0.00028858,2]
[341672909,1731081032251,-781.56,0.00028893,2]
[341672910,1731081032260,-425.45,0.00028928,120]
[341672911,1731081032269,-7671.02,0.0002897,2]
[341672912,1731081032279,-650.0,0.00029,2]
[341672913,1731081032291,-1253.0,0.00029049,2]
[341672914,1731081032300,-452.0,0.00029049,2]
[341672915,1731081032310,-150.549,0.00029049,2]
[341672916,1731081032320,-1989.0,0.00029049,2]
[341672917,1731081032330,-559.0,0.00029049,2]
[341672918,1731081032340,-1921.0,0.00029049,2]
[341672919,1731081032349,-2909.0,0.00029049,2]
[341672920,1731081032359,-921.0,0.00029049,2]
[341672921,1731081032368,-813.0,0.00029049,2]
[341672922,1731081032378,-1258.0,0.00029049,2]
[341672923,1731081032387,-3463.0,0.00029049,2]
[341672924,1731081032398,-150.0,0.00029049,2]
[341672925,1731081032408,-824.59233605,0.00029049,2]
[341672926,1731081032464,-1450.0,0.00029049,2]
[341672927,1731081032478,-3649.40766395,0.00029049,2]
[341672928,1731081032487,-1156.0,0.00029049,2]
[341672929,1731081032498,-1090.0,0.00029049,2]
[341672930,1731081032508,-150.0,0.00029049,2]
[341672931,1731081032517,-2522.0,0.000293,10]
[341672932,1731081032526,-315.86,0.000293,2]
[341672933,1731081032536,-1004.98,0.000293,2]
[341672934,1731081032545,-723.19,0.00029309,2]
[341672935,1731081032555,-723.19,0.0002978,2]
[341672936,1731081032565,-200.0,0.00029877,7]
[341672937,1731081032576,-250.0,0.00029967,2]
[341672938,1731081032585,-400.0,0.0002997,2]
[341672946,1731081032598,-400.0,0.0002997,2]
[341672947,1731081032819,-722.15938948,0.0002997,2]
[341672948,1731081032830,-3136.1281991,0.0003,120]
[341672949,1731081032840,-300.0,0.0003,2]
[341672950,1731081032850,-700.0,0.0003,11]
[341672951,1731081032859,-700.0,0.0003,11]
[341672952,1731081032868,-700.0,0.0003,11]
[341672953,1731081032879,-700.0,0.0003,11]
[341672954,1731081032890,-700.0,0.0003,11]
[341672955,1731081032902,-781.56,0.00030034,2]
[341672956,1731081032911,-152.28,0.00030137,2]
[341672957,1731081032922,-203.4845591,0.00030137,2]
[341672958,1731081032932,-1031.36,0.00030223,2]
[341672959,1731081032941,-723.19,0.00030251,2]
[341672960,1731081032950,-1000.0,0.00030276,2]
[341672961,1731081032959,-1780.74,0.00030292,2]
[341672962,1731081032969,-772.68,0.00030299,2]
[341672963,1731081032978,-250.0,0.00030299,2]
[341672964,1731081032990,-150.03,0.0003036,120]
[341672965,1731081032999,-321.49,0.0003041,2]
[341672966,1731081033008,-305.04861757,0.000305,14]
[341672967,1731081033018,-2699.6804,0.0003059,2]
[341672968,1731081033029,-1004.98,0.00030595,2]
[341672969,1731081033039,-1515.1042,0.000307,2]
[341672970,1731081033048,-273.03833091,0.000307,2]
[341672971,1731081033058,-338.44580455,0.000307,2]
[341672972,1731081033067,-273.03833091,0.0003072,2]
[341672973,1731081033077,-723.19,0.00030722,2]
[341672974,1731081033087,-273.03833091,0.00030739,2]
[341672975,1731081033097,-775.49,0.0003079,10]
[341672976,1731081033107,-792.57,0.00030792,27]
[341672977,1731081033117,-500.0,0.00030799,2]
[341672978,1731081033126,-557.56447508,0.00030799,2]
[341672979,1731081033136,-500.0,0.00030799,2]
[341672980,1731081033146,-40039.08169844,0.000308,2]
[341672981,1731081033158,-261.94030905,0.000308,2]
[341672982,1731081033169,-932.46953792,0.000308,2]
[341672983,1731081033181,-2034.11953564,0.000308,2]
[341672984,1731081033285,-1642.60180051,0.000308,2]
[341672985,1731081033298,-55089.78711844,0.000308,2]
[341672986,1731081033310,-203165.84148496,0.000308,2]
[341672987,1731081033489,-1121.48541504,0.000308,2]
[341672988,1731081033502,-4236.80092982,0.000308,2]
[341672989,1731081033691,-1075.696575,0.000308,2]
[341672990,1731081033702,-604.53302227,0.000308,2]
[341672991,1731081033713,-9575.11897902,0.000308,2]
[341672992,1731081033725,-15205.5166923,0.000308,2]
[341672993,1731081033736,-770.7710815,0.000308,2]
[341672994,1731081033775,-992.32592759,0.000308,2]
[341673009,1731081038543,-9342.46809932,0.000308,2]
[341673010,1731081038555,-1851.82938288,0.000308,2]
[341673011,1731081038566,-609.950466,0.000308,2]
[341673012,1731081038680,-1765.24114612,0.000308,2]
[341673013,1731081038692,-257.19,0.00030829,2]
[341673014,1731081038702,-158.82,0.00030839,30]
[341673015,1731081038712,-2949.16900836,0.0003087,15]
[341673016,1731081038722,-321.17240202,0.0003087,2]
[341673017,1731081038731,-1468.5218,0.00030892,2]
[341673018,1731081038741,-18634.8952,0.000309,2]
[341673019,1731081038754,-1900.08325838,0.00030908,2]
[341673020,1731081038764,-1900.08325838,0.0003091,2]
[341673021,1731081038774,-626.16972482,0.00030914,2]
[341673022,1731081038783,-626.16972482,0.00030918,2]
[341673023,1731081038793,-929.11662843,0.00030923,2]
[341673024,1731081038802,-626.16972482,0.00030933,2]
[341673025,1731081038812,-929.11662843,0.00030939,2]
[341673026,1731081038821,-612.76457066,0.00030942,2]
[341673027,1731081038831,-626.16972482,0.00030945,2]
[341673028,1731081038840,-612.76457066,0.00030945,2]
[341673029,1731081038849,-626.16972482,0.00030945,2]
[341673030,1731081038858,-1900.08325838,0.00030947,2]
[341673031,1731081038868,-612.76457066,0.00030947,2]
[341673032,1731081038877,-612.76457066,0.00030953,2]
[341673033,1731081038886,-1900.08325838,0.00030957,2]
[341673034,1731081038896,-929.11662843,0.0003096,2]
[341673035,1731081038905,-929.11662843,0.00030969,2]
[341673036,1731081038914,-400.0,0.0003097,2]
[341673037,1731081038924,-501.13442823,0.0003097,2]
[341673038,1731081038934,-612.76457066,0.00030978,2]
[341673039,1731081038944,-1900.08325838,0.0003098,2]
[341673040,1731081038953,-1900.08325838,0.00030981,2]
[341673041,1731081038962,-929.11662843,0.00030984,2]
[341673042,1731081038971,-929.11662843,0.00030985,2]
[341673043,1731081038981,-612.76457066,0.00030986,2]
[341673044,1731081038990,-626.16972482,0.00030989,2]
[341673045,1731081039002,-3000.0,0.00031,2]
[341673046,1731081039012,-700.0,0.00031,2]
[341673047,1731081039021,-500.0,0.0003112,5]
[341673048,1731081039031,-781.56,0.00031174,2]
[341673049,1731081039040,-723.19,0.00031193,2]
[341673051,1731081039050,-374.55,0.00031468,120]
[341673053,1731081039059,-723.19,0.00031664,2]
[341673055,1731081039068,-1000.0,0.000318,2]
[341673057,1731081039078,-858.0,0.000318,2]
[341673059,1731081039088,-200.0,0.000318,11]
[341673061,1731081039097,-363.0,0.000318,2]
[341673063,1731081039107,-1004.98,0.0003189,2]
[341673065,1731081039116,-500.0,0.000319,11]
[341673067,1731081039125,-1208.99745394,0.00031945,120]
[341673069,1731081039134,-150.28575215,0.0003199,2]
[341673070,1731081039144,-150.0,0.00031999,30]
[341673072,1731081039153,-500.0,0.00031999,2]
[341673074,1731081039163,-20980.68965018,0.00032,2]
[341673194,1731081040371,-1280.47738749,0.00032,2]
[341673196,1731081040385,-1988.53696619,0.00032,2]
[341673215,1731081040549,-501.52009198,0.00032,2]
[341673217,1731081040561,-2962.66121566,0.00032,2]
[341673784,1731081046059,-500.0,0.00030799,2]
[341673787,1731081046069,-155.81664459,0.00030799,2]
[341673790,1731081046081,-337.73818015,0.00030799,2]
[341673797,1731081046123,-6.44517526,0.00030799,2]
[341673799,1731081046133,-617.50395244,0.00030799,2]
[341673801,1731081046143,-7039.84365079,0.00032,2]
[341673803,1731081046155,-213441.92933354,0.00032,2]
[341673805,1731081046167,-13995.31651032,0.00032,2]
[341673808,1731081046180,-698.61599448,0.00032,2]
[341673813,1731081046224,-165106.08681978,0.00032,2]
[341673835,1731081046435,-5365.92042,0.00032,2]
[341673843,1731081046498,-253.9149331,0.00032,2]
[341673851,1731081046566,-1439.79704897,0.00032,2]
[341673903,1731081047090,-1021.94291654,0.00032,2]
[341673915,1731081047257,-500.0,0.00030799,2]
[341673918,1731081047267,-426.88365301,0.00030799,2]
[341673920,1731081047278,-73.11634699,0.00030799,2]
[341673922,1731081047288,-500.0,0.00030799,2]
[341673924,1731081047297,-500.0,0.00030799,2]
[341673926,1731081047307,-6573.90005301,0.00032,2]
[341673934,1731081047372,-500.0,0.00030799,2]
[341673936,1731081047382,-574.99999999,0.00030799,2]
[341673938,1731081047393,-514711.84700797,0.00032,2]
[341673940,1731081047402,-439.059,0.00032049,2]
[341673942,1731081047411,-150.0,0.00032049,2]
[341673944,1731081047420,-723.19,0.00032135,2]
[341673946,1731081047430,-2949.16900832,0.00032141,15]
[341673948,1731081047439,-4690.5528,0.000323,2]
[341673950,1731081047448,-338.44580451,0.000323,2]
[341673952,1731081047458,-781.56,0.00032315,2]
[341673954,1731081047467,-257.19,0.00032371,2]
[341673955,1731081047476,-152.0,0.00032429,3]
[341673958,1731081047486,-1031.36,0.00032487,2]
[341673960,1731081047496,-425.45,0.00032544,120]
[341673962,1731081047505,-723.19,0.00032606,2]
[341673964,1731081047515,-414.66680619,0.00032672,2]
[341673965,1731081047523,-251.213941,0.00032697,120]
[341673967,1731081047533,-153.98,0.0003272,2]
[341673969,1731081047542,-31983.1961,0.00032721,2]
[341673971,1731081047552,-151.0,0.0003278,2]
[341673973,1731081047562,-152.28,0.00032877,2]
[341673975,1731081047571,-177.34,0.00032881,2]
[341673977,1731081047581,-510.50544325,0.00033,2]
[341673979,1731081047590,-300.0,0.00033,7]
[341673981,1731081047599,-350.00000002,0.00033,3]
[341673983,1731081047612,-505.565526,0.00033,14]
[341673985,1731081047622,-750.0,0.00033,2]
[341673987,1731081047631,-2000.0,0.00033025,120]
[341673989,1731081047640,-375.5809355,0.00033029,2]
[341673991,1731081047651,-500.0,0.00033135,4]
[341673993,1731081047660,-1004.98,0.00033185,2]
[341673995,1731081047669,-375.5809355,0.00033247,2]
[341673997,1731081047679,-2949.16900832,0.00033413,15]
[341673999,1731081047688,-781.56,0.00033455,2]
[341674001,1731081047698,-760.62,0.000335,31]
[341674003,1731081047707,-760.62,0.000335,31]
[341674005,1731081047717,-760.62,0.000335,31]
[341674007,1731081047726,-760.62,0.000335,31]
[341674009,1731081047735,-760.62,0.000335,31]
[341674011,1731081047745,-760.62,0.000335,31]
[341674013,1731081047755,-760.62,0.000335,31]
[341674015,1731081047765,-760.62,0.000335,31]
[341674017,1731081047775,-760.62,0.000335,31]
[341674019,1731081047784,-760.62,0.000335,31]
[341674021,1731081047794,-760.62,0.000335,31]
[341674023,1731081047803,-760.62,0.000335,31]
[341674025,1731081047813,-375.5809356,0.00033627,2]
[341674027,1731081047822,-1500.0,0.00033641,2]
[341674029,1731081047832,-164.21315472,0.00033653,2]
[341674031,1731081047842,-7703.83378122,0.00033661,30]
[341674033,1731081047851,-180.0,0.00033688,2]
[341674035,1731081047860,-1339.52418994,0.00033689,2]
[341674037,1731081047870,-8992.571,0.00033699,2]
[341674039,1731081047879,-150.0,0.00033699,2]
[341674041,1731081047889,-201.3,0.000337,11]
[341674043,1731081047898,-3000.0,0.000337,2]
[341674045,1731081047907,-813.0,0.000337,22]
[341674047,1731081047917,-398.0,0.000337,18]
[341674049,1731081047926,-797.0,0.000337,18]
[341674051,1731081047936,-1000.0,0.000337,7]
[341674053,1731081047945,-3104.95147822,0.000337,2]
[341674055,1731081047955,-153.18978299,0.000337,2]
[341674057,1731081047964,-400.0,0.0003377,2]
[341674059,1731081047974,-400.0,0.0003377,2]
[341674061,1731081047983,-512.76213776,0.00033773,2]
[341674063,1731081047995,-150.28575215,0.00033789,2]
[341674065,1731081048005,-256.84478514,0.00033789,2]
[341674067,1731081048019,-1362.35907102,0.00033789,2]
[341674069,1731081048028,-2000.0,0.0003379,2]
[341674071,1731081048038,-150.28575215,0.0003379,2]
[341674073,1731081048048,-1267.4501606,0.00033793,2]
[341674075,1731081048057,-2223.371,0.00033798,2]
[341674077,1731081048067,-76894.20146316,0.00033799,2]
[341674090,1731081048185,-500.0,0.00030799,2]
[341674092,1731081048195,-3718.10007,0.00033799,2]
[341674094,1731081048207,-381550.00000004,0.00033799,2]
[341674096,1731081048218,-21453.45660736,0.00033799,2]
[341674508,1731081131496,800.0,0.00026986,120]
[341674510,1731081248773,800.0,0.00026986,120]
[341674513,1731081588359,161.56,0.00015342,2]
[341674517,1731082000204,150.0,0.0002011,2]
[341674546,1731082232878,-161.56,0.00021745,2]
[341674547,1731082232888,-645.04267748,0.00027,2]
[341674548,1731082232927,-692.70000002,0.00027,2]
[341674549,1731082232941,-216.3875415,0.00027,2]
[341674550,1731082232951,-7419.1651305,0.000275,2]
[341674551,1731082233000,-493.5770007,0.000275,2]
[341674552,1731082233065,-3841.55080373,0.000275,2]
[341674553,1731082233075,-766.44,0.000279,2]
[341674554,1731082233085,-161.56,0.00028147,2]
[341674555,1731082233095,-1903.025,0.00028147,2]
[341674556,1731082233105,-824.592,0.00028561,2]
[341674557,1731082233117,-150.0,0.00028561,2]
[341674558,1731082233129,-928.23,0.00028901,2]
[341674559,1731082233140,-293.034,0.0002905,2]
[341674560,1731082233150,-468.399,0.0002905,2]
[341674561,1731082233160,-1006.22,0.000293,2]
[341674562,1731082233174,-156.31,0.00029361,2]
[341674563,1731082233184,-200.0,0.000296,2]
[341674564,1731082233194,-560.64457904,0.00029898,3]
[341674565,1731082233205,-700.0,0.0003,11]
[341674566,1731082233215,-700.0,0.0003,11]
[341674567,1731082233226,-700.0,0.0003,11]
[341674568,1731082233236,-700.0,0.0003,11]
[341674569,1731082233246,-700.0,0.0003,11]
[341674570,1731082233257,-221.4317163,0.00030137,2]
[341674571,1731082233267,-152.28,0.00030137,2]
[341674572,1731082233277,-1505.205043,0.00030175,2]
[341674573,1731082233287,-156.31,0.0003052,2]
[341674574,1731082233297,-355.14,0.00030692,2]
[341674575,1731082233307,-250.0,0.00030698,2]
[341674576,1731082233318,-150.03,0.00030758,120]
[341674577,1731082233328,-250.0,0.0003081,2]
[341674578,1731082233339,-7681.02,0.00030815,2]
[341674579,1731082233350,-386.34,0.00030829,2]
[341674580,1731082233360,-154.32,0.00030882,2]
[341674581,1731082233374,-240330.83241285,0.00030907,2]
[341674582,1731082233385,-10483.42657175,0.00030908,2]
[341674583,1731082233395,-35724.08135637,0.00030911,2]
[341674584,1731082233409,-510.1947435,0.00030911,2]
[341674585,1731082233473,-1253.66116009,0.00030911,2]
[341674587,1731082238519,-276.003,0.00030911,2]
[341674606,1731082240249,-355.14,0.00030911,2]
[341674607,1731082240261,-973.17227552,0.00030911,2]
[341674608,1731082240273,-880.17000001,0.00030911,2]
[341674609,1731082240328,-651.25063414,0.00030911,2]
[341674610,1731082240479,-34684.66460668,0.00030911,2]
[341674611,1731082240489,-75308.33777631,0.00030916,2]
[341674612,1731082240498,-8592.98760206,0.00030918,2]
[341674613,1731082240507,-389.77187334,0.00030921,2]
[341674614,1731082240516,-10483.42657175,0.00030922,2]
[341674615,1731082240525,-61072.99315794,0.00030927,2]
[341674727,1731082243546,-14235.34461837,0.00030927,2]
[341674729,1731082243555,-8592.98760206,0.0003094,2]
[341674731,1731082243566,-3357.03754035,0.0003094,2]
[341674733,1731082243575,-389.77187334,0.00030942,2]
[341674735,1731082243584,-75308.33777631,0.00030942,2]
[341674737,1731082243594,-158.82,0.00030944,30]
[341674738,1731082243603,-3357.03754035,0.00030949,2]
[341674740,1731082243612,-75308.33777631,0.00030952,2]
[341674742,1731082243622,-3357.03754035,0.00030954,2]
[341674744,1731082243643,-8592.98760206,0.00030958,2]
[341674746,1731082243653,-3357.03754035,0.00030959,2]
[341674748,1731082243663,-8592.98760206,0.0003096,2]
[341674750,1731082243673,-8592.98760206,0.00030963,2]
[341674752,1731082243681,-241.21671957,0.0003097,2]
[341674754,1731082243693,-76361.50121415,0.0003097,2]
[341674791,1731082244147,-1331.17028127,0.0003097,2]
[341674793,1731082244159,-4007.79999926,0.0003097,2]
[341674920,1731082246278,-606.15244707,0.0003097,2]
[341674932,1731082246404,-283.96332378,0.0003097,2]
[341675262,1731082290778,150.0,0.00018123,2]
[341675263,1731082332718,150.0,0.00018123,2]
[341675264,1731082374205,150.55831955,0.00018123,2]
[341675266,1731082382087,300.0,0.00019725,2]
[341675267,1731082384656,159.74,0.00015342,2]
[341675268,1731082561940,300.0,0.00019725,2]
[341675270,1731082649117,-450.0,0.00021,2]
[341675471,1731082864187,800.0,0.00026986,120]
[341675822,1731082924319,300.0,0.00019725,2]
[341675823,1731082981566,300.0,0.00019725,2]
[341675824,1731083060678,160.21,0.00015342,2]
[341675826,1731083194117,-500.0,0.00023,2]
[341675827,1731083194139,-2245.0,0.000244,3]
[341675828,1731083194162,-235.56369924,0.00025,2]
[341675829,1731083280589,150.0,0.00018,2]
[341675830,1731083286253,2458191.15334368,0.00015,2]
[341675832,1731083308446,150.0,0.00018123,2]